lending/lending_fUSD_20241113
["ID","MTS","AMOUNT","RATE_DAILY","PERIOD"]
[342168388,1731528453609,-466.638817,0.00012996,2]
[342168389,1731528453639,-151.0,0.00012996,2]
[342168390,1731528453667,-151.0,0.00012996,2]
[342168391,1731528453693,-151.0,0.00012996,2]
[342168392,1731528453719,-151.0,0.00012996,2]
[342168393,1731528453745,-174.088465,0.00012996,2]
[342168394,1731528453780,-174.088465,0.00012996,2]
[342168395,1731528453808,-151.0,0.00012996,2]
[342168396,1731528453839,-398.009176,0.00012996,2]
[342168397,1731528453867,-398.009176,0.00012996,2]
[342168398,1731528453893,-151.95518,0.00012996,2]
[342168399,1731528453920,-151.95518,0.00012996,2]
[342168400,1731528454417,-151.0,0.00012996,2]
[342168401,1731528454441,-227.405074,0.00012996,2]
[342168402,1731528454464,-151.0,0.00012996,2]
[342168403,1731528454489,-151.0,0.00012996,2]
[342168404,1731528454525,-227.405074,0.00012996,2]
[342168405,1731528454551,-151.0,0.00012996,2]
[342168406,1731528454577,-151.0,0.00012996,2]
[342168407,1731528454601,-151.0,0.00012996,2]
[342168408,1731528454624,-893.972005,0.00012996,2]
[342168409,1731528454648,-893.972005,0.00012996,2]
[342168410,1731528454670,-598.91132,0.00012996,2]
[342168411,1731528454694,-598.91132,0.00012996,2]
[342168412,1731528454718,-177.997683,0.00012996,2]
[342168413,1731528454741,-177.997683,0.00012996,2]
[342168414,1731528454783,-285.280053,0.00012996,2]
[342168415,1731528454807,-285.280053,0.00012996,2]
[342168416,1731528454832,-221.919471,0.00012996,2]
[342168417,1731528454857,-221.919471,0.00012996,2]
[342168418,1731528454882,-151.0,0.00012996,2]
[342168419,1731528454904,-376.863285,0.00012996,2]
[342168420,1731528454928,-376.863285,0.00012996,2]
[342168421,1731528454953,-3132895.63648567,0.00012997,2]
[342168422,1731528454978,-310363.18290928,0.00012997,2]
[342168423,1731528455001,-9300.8779119,0.00012997,2]
[342168424,1731528455035,-12351.79879391,0.00012997,2]
[342168425,1731528455057,-151.0,0.00012997,2]
[342168426,1731528455081,-151.929006,0.00012997,2]
[342168427,1731528455104,-279.950681,0.00012997,2]
[342168428,1731528455127,-151.0,0.00012997,2]
[342168429,1731528455151,-151.0,0.00012997,2]
[342168430,1731528455174,-151.0,0.00012997,2]
[342168431,1731528455196,-151.0,0.00012997,2]
[342168432,1731528455219,-975.23668,0.00012997,2]
[342168433,1731528455241,-975.23668,0.00012997,2]
[342168434,1731528455268,-975.23668,0.00012997,2]
[342168435,1731528455292,-975.23668,0.00012997,2]
[342168436,1731528455315,-227.293956,0.00012997,2]
[342168437,1731528455337,-227.293956,0.00012997,2]
[342168438,1731528455360,-227.293956,0.00012997,2]
[342168439,1731528455393,-227.293956,0.00012997,2]
[342168440,1731528455420,-162.084549,0.00012997,2]
[342168441,1731528455447,-151.0,0.00012997,2]
[342168442,1731528455471,-199.612664,0.00012997,2]
[342168443,1731528455497,-151.0,0.00012997,2]
[342168444,1731528455528,-151.0,0.00012997,2]
[342168445,1731528455553,-151.0,0.00012997,2]
[342168446,1731528455579,-151.0,0.00012997,2]
[342168447,1731528455604,-188.34489,0.00012997,2]
[342168448,1731528455628,-188.34489,0.00012997,2]
[342168449,1731528455652,-151.0,0.00012997,2]
[342168450,1731528455676,-151.0,0.00012997,2]
[342168451,1731528455701,-188.34489,0.00012997,2]
[342168452,1731528455725,-188.34489,0.00012997,2]
[342168453,1731528455750,-151.0,0.00012997,2]
[342168454,1731528455780,-151.0,0.00012997,2]
[342168455,1731528455806,-151.0,0.00012997,2]
[342168456,1731528455830,-151.0,0.00012997,2]
[342168457,1731528455856,-151.0,0.00012997,2]
[342168458,1731528455880,-151.0,0.00012997,2]
[342168459,1731528455905,-151.0,0.00012997,2]
[342168460,1731528455929,-154.217,0.00012997,2]
[342168461,1731528455954,-666.400537,0.00012997,2]
[342168462,1731528455978,-666.400537,0.00012997,2]
[342168463,1731528456017,-666.400537,0.00012997,2]
[342168464,1731528456044,-666.400537,0.00012997,2]
[342168465,1731528456070,-151.0,0.00012997,2]
[342168466,1731528456094,-151.0,0.00012997,2]
[342168467,1731528456119,-267.73618,0.00012997,2]
[342168468,1731528456143,-267.73618,0.00012997,2]
[342168469,1731528456168,-466.638817,0.00012997,2]
[342168470,1731528456193,-466.638817,0.00012997,2]
[342168471,1731528456219,-466.638817,0.00012997,2]
[342168472,1731528456244,-466.638817,0.00012997,2]
[342168473,1731528456273,-151.0,0.00012997,2]
[342168474,1731528456297,-151.0,0.00012997,2]
[342168475,1731528456322,-151.0,0.00012997,2]
[342168476,1731528456347,-151.0,0.00012997,2]
[342168477,1731528456370,-151.0,0.00012997,2]
[342168478,1731528456394,-251.340969,0.00012997,2]
[342168479,1731528456418,-167.498804,0.00012997,2]
[342168480,1731528456442,-174.088465,0.00012997,2]
[342168481,1731528456467,-174.088465,0.00012997,2]
[342168482,1731528456493,-174.088465,0.00012997,2]
[342168483,1731528456522,-174.088465,0.00012997,2]
[342168484,1731528456546,-151.0,0.00012997,2]
[342168485,1731528456570,-151.0,0.00012997,2]
[342168486,1731528456596,-398.009176,0.00012997,2]
[342168487,1731528456627,-398.009176,0.00012997,2]
[342168488,1731528456652,-398.009176,0.00012997,2]
[342168489,1731528456677,-398.009176,0.00012997,2]
[342168490,1731528456702,-151.95518,0.00012997,2]
[342168491,1731528456727,-151.95518,0.00012997,2]
[342168492,1731528456754,-151.95518,0.00012997,2]
[342168493,1731528456786,-151.95518,0.00012997,2]
[342168494,1731528456812,-151.0,0.00012997,2]
[342168495,1731528456837,-151.0,0.00012997,2]
[342168496,1731528456866,-227.405074,0.00012997,2]
[342168497,1731528456893,-227.405074,0.00012997,2]
[342168498,1731528456919,-151.0,0.00012997,2]
[342168499,1731528456944,-185.905966,0.00012997,2]
[342168500,1731528456970,-151.0,0.00012997,2]
[342168501,1731528456995,-151.0,0.00012997,2]
[342168502,1731528457026,-227.405074,0.00012997,2]
[342168503,1731528457051,-227.405074,0.00012997,2]
[342168504,1731528457075,-151.0,0.00012997,2]
[342168505,1731528457100,-151.0,0.00012997,2]
[342168506,1731528457126,-151.0,0.00012997,2]
[342168507,1731528457151,-179.178651,0.00012997,2]
[342168508,1731528457175,-151.0,0.00012997,2]
[342168509,1731528457200,-151.0,0.00012997,2]
[342168510,1731528457226,-893.972005,0.00012997,2]
[342168511,1731528457252,-893.972005,0.00012997,2]
[342168512,1731528457282,-893.972005,0.00012997,2]
[342168513,1731528457306,-893.972005,0.00012997,2]
[342168514,1731528457333,-598.91132,0.00012997,2]
[342168515,1731528457357,-598.91132,0.00012997,2]
[342168516,1731528457381,-598.91132,0.00012997,2]
[342168517,1731528457405,-598.91132,0.00012997,2]
[342168518,1731528457429,-177.997683,0.00012997,2]
[342168519,1731528457453,-177.997683,0.00012997,2]
[342168520,1731528457477,-177.997683,0.00012997,2]
[342168521,1731528457502,-177.997683,0.00012997,2]
[342168522,1731528457530,-151.0,0.00012997,2]
[342168523,1731528457555,-151.0,0.00012997,2]
[342168524,1731528457580,-285.280053,0.00012997,2]
[342168525,1731528457608,-151.0,0.00012997,2]
[342168526,1731528457633,-285.280053,0.00012997,2]
[342168527,1731528457660,-151.0,0.00012997,2]
[342168528,1731528457684,-285.280053,0.00012997,2]
[342168529,1731528457709,-285.280053,0.00012997,2]
[342168530,1731528457735,-221.919471,0.00012997,2]
[342168531,1731528457766,-221.919471,0.00012997,2]
[342168532,1731528457799,-221.919471,0.00012997,2]
[342168533,1731528457825,-221.919471,0.00012997,2]
[342168534,1731528457852,-151.0,0.00012997,2]
[342168535,1731528457879,-189.182769,0.00012997,2]
[342168536,1731528457903,-157.116972,0.00012997,2]
[342168537,1731528457927,-157.116972,0.00012997,2]
[342168538,1731528457952,-157.116972,0.00012997,2]
[342168539,1731528457977,-157.116972,0.00012997,2]
[342168540,1731528458001,-261.69646,0.00012997,2]
[342168541,1731528458032,-548.76024,0.00012997,2]
[342168542,1731528458055,-548.76024,0.00012997,2]
[342168543,1731528458079,-376.863285,0.00012997,2]
[342168544,1731528458103,-376.863285,0.00012997,2]
[342168545,1731528458129,-424.843563,0.00012997,2]
[342168546,1731528458153,-424.843563,0.00012997,2]
[342168547,1731528458178,-376.863285,0.00012997,2]
[342168548,1731528458202,-376.863285,0.00012997,2]
[342168549,1731528458576,-424.843563,0.00012997,2]
[342168550,1731528458602,-424.843563,0.00012997,2]
[342168551,1731528458629,-151.0,0.00012997,2]
[342168552,1731528458656,-151.0,0.00012997,2]
[342168553,1731528458680,-163.335727,0.00012997,2]
[342168554,1731528458704,-151.0,0.00012997,2]
[342168555,1731528458729,-151.0,0.00012997,2]
[342168556,1731528458754,-151.0,0.00012997,2]
[342168557,1731528458786,-151.0,0.00012997,2]
[342168558,1731528458811,-279.997524,0.00012997,2]
[342168559,1731528458836,-279.997524,0.00012997,2]
[342168560,1731528458859,-279.997524,0.00012997,2]
[342168561,1731528458883,-279.997524,0.00012997,2]
[342168562,1731528458907,-426.453636,0.00012997,2]
[342168563,1731528458933,-426.453636,0.00012997,2]
[342168564,1731528458958,-426.453636,0.00012997,2]
[342168565,1731528458985,-426.453636,0.00012997,2]
[342168566,1731528459011,-151.0,0.00012997,2]
[342168567,1731528459039,-279.645234,0.00012997,2]
[342168568,1731528459063,-151.0,0.00012997,2]
[342168569,1731528459086,-151.0,0.00012997,2]
[342168570,1731528459110,-177.963301,0.00012997,2]
[342168571,1731528459134,-177.963301,0.00012997,2]
[342168572,1731528459157,-177.963301,0.00012997,2]
[342168573,1731528459182,-177.963301,0.00012997,2]
[342168574,1731528459207,-200.340093,0.00012997,2]
[342168575,1731528459231,-200.340093,0.00012997,2]
[342168576,1731528459255,-200.340093,0.00012997,2]
[342168577,1731528459284,-200.340093,0.00012997,2]
[342168578,1731528459307,-151.0,0.00012997,2]
[342168579,1731528459332,-151.0,0.00012997,2]
[342168580,1731528459356,-493.88202,0.00012997,2]
[342168581,1731528459379,-493.88202,0.00012997,2]
[342168582,1731528459403,-753.675377,0.00012997,2]
[342168583,1731528459428,-1074.668303,0.00012997,2]
[342168584,1731528459452,-753.675377,0.00012997,2]
[342168585,1731528459476,-493.88202,0.00012997,2]
[342168586,1731528459500,-493.88202,0.00012997,2]
[342168587,1731528459534,-753.675377,0.00012997,2]
[342168588,1731528459559,-753.675377,0.00012997,2]
[342168589,1731528459583,-1074.668303,0.00012997,2]
[342168590,1731528459607,-522.649381,0.00012997,2]
[342168591,1731528459633,-522.649381,0.00012997,2]
[342168592,1731528459660,-1074.668303,0.00012997,2]
[342168593,1731528459685,-1074.668303,0.00012997,2]
[342168594,1731528459710,-595.069279,0.00012997,2]
[342168595,1731528459733,-595.069279,0.00012997,2]
[342168596,1731528459758,-595.069279,0.00012997,2]
[342168597,1731528459794,-595.069279,0.00012997,2]
[342168598,1731528459821,-278.284467,0.00012997,2]
[342168599,1731528459847,-151.0,0.00012997,2]
[342168600,1731528459873,-151.0,0.00012997,2]
[342168601,1731528459898,-151.0,0.00012997,2]
[342168602,1731528459923,-151.0,0.00012997,2]
[342168603,1731528459948,-151.0,0.00012997,2]
[342168604,1731528459972,-151.0,0.00012997,2]
[342168605,1731528459997,-151.0,0.00012997,2]
[342168606,1731528460028,-151.0,0.00012997,2]
[342168607,1731528460052,-151.0,0.00012997,2]
[342168608,1731528460077,-151.0,0.00012997,2]
[342168609,1731528460102,-358.028382,0.00012997,2]
[342168610,1731528460125,-358.028382,0.00012997,2]
[342168611,1731528460149,-151.0,0.00012997,2]
[342168612,1731528460174,-358.028382,0.00012997,2]
[342168613,1731528460197,-151.0,0.00012997,2]
[342168614,1731528460221,-358.028382,0.00012997,2]
[342168615,1731528460246,-760.457686,0.00012997,2]
[342168616,1731528460274,-760.457686,0.00012997,2]
[342168617,1731528460297,-760.457686,0.00012997,2]
[342168618,1731528460321,-760.457686,0.00012997,2]
[342168619,1731528460344,-976.537637,0.00012997,2]
[342168620,1731528460367,-976.537637,0.00012997,2]
[342168621,1731528460390,-976.537637,0.00012997,2]
[342168622,1731528460413,-555.819384,0.00012997,2]
[342168623,1731528460437,-976.537637,0.00012997,2]
[342168624,1731528460462,-555.819384,0.00012997,2]
[342168625,1731528460486,-151.0,0.00012997,2]
[342168626,1731528460510,-151.0,0.00012997,2]
[342168627,1731528460538,-2552.680517,0.00012997,2]
[342168628,1731528460563,-2552.680517,0.00012997,2]
[342168629,1731528460587,-555.819384,0.00012997,2]
[342168630,1731528460612,-555.819384,0.00012997,2]
[342168631,1731528460637,-151.0,0.00012997,2]
[342168632,1731528460662,-151.0,0.00012997,2]
[342168633,1731528460687,-2552.680517,0.00012997,2]
[342168634,1731528460712,-2552.680517,0.00012997,2]
[342168635,1731528460737,-151.0,0.00012997,2]
[342168636,1731528460769,-185.902146,0.00012997,2]
[342168637,1731528460795,-151.0,0.00012997,2]
[342168638,1731528460821,-151.0,0.00012997,2]
[342168639,1731528460847,-388.270009,0.00012997,2]
[342168640,1731528460872,-388.270009,0.00012997,2]
[342168641,1731528460896,-388.270009,0.00012997,2]
[342168642,1731528460920,-388.270009,0.00012997,2]
[342168643,1731528460947,-279.802429,0.00012997,2]
[342168644,1731528460972,-279.802429,0.00012997,2]
[342168645,1731528460997,-279.802429,0.00012997,2]
[342168646,1731528461027,-279.802429,0.00012997,2]
[342168647,1731528461050,-4743.206012,0.00012997,2]
[342168648,1731528461076,-4743.206012,0.00012997,2]
[342168649,1731528461100,-4743.206012,0.00012997,2]
[342168650,1731528461123,-4743.206012,0.00012997,2]
[342168651,1731528461147,-151.0,0.00012997,2]
[342168652,1731528461171,-151.0,0.00012997,2]
[342168653,1731528461195,-451.67644,0.00012997,2]
[342168654,1731528461220,-451.67644,0.00012997,2]
[342168655,1731528461243,-451.67644,0.00012997,2]
[342168656,1731528461272,-451.67644,0.00012997,2]
[342168657,1731528461297,-10000.0,0.00012997,2]
[342168658,1731528461322,-10000.0,0.00012997,2]
[342168659,1731528461347,-151.0,0.00012997,2]
[342168660,1731528461371,-151.0,0.00012997,2]
[342168661,1731528461396,-10000.0,0.00012997,2]
[342168662,1731528461420,-2658.825331,0.00012997,2]
[342168663,1731528461444,-151.0,0.00012997,2]
[342168664,1731528461468,-2658.825331,0.00012997,2]
[342168665,1731528461491,-151.0,0.00012997,2]
[342168666,1731528461519,-10000.0,0.00012997,2]
[342168667,1731528461545,-1321.943855,0.00012997,2]
[342168668,1731528461572,-1321.943855,0.00012997,2]
[342168669,1731528461595,-2658.825331,0.00012997,2]
[342168670,1731528461619,-2658.825331,0.00012997,2]
[342168671,1731528461644,-10000.0,0.00012997,2]
[342168672,1731528461667,-1321.943855,0.00012997,2]
[342168673,1731528461690,-10000.0,0.00012997,2]
[342168674,1731528461714,-1321.943855,0.00012997,2]
[342168675,1731528461740,-10000.0,0.00012997,2]
[342168676,1731528461776,-10000.0,0.00012997,2]
[342168677,1731528461803,-215.100011,0.00012997,2]
[342168678,1731528461829,-215.100011,0.00012997,2]
[342168679,1731528461856,-215.100011,0.00012997,2]
[342168680,1731528461882,-215.100011,0.00012997,2]
[342168681,1731528461908,-151.0,0.00012997,2]
[342168682,1731528461934,-151.0,0.00012997,2]
[342168683,1731528461961,-93253.7325159,0.00012998,2]
[342168684,1731528461985,-227.293956,0.00012998,2]
[342168685,1731528462009,-227.293956,0.00012998,2]
[342168686,1731528462042,-151.0,0.00012998,2]
[342168687,1731528462066,-193.21268,0.00012998,2]
[342168688,1731528462091,-188.34489,0.00012998,2]
[342168689,1731528462118,-151.0,0.00012998,2]
[342168690,1731528462141,-188.34489,0.00012998,2]
[342168691,1731528462167,-221.732579,0.00012998,2]
[342168692,1731528462191,-151.0,0.00012998,2]
[342168693,1731528462214,-151.0,0.00012998,2]
[342168694,1731528462238,-666.400537,0.00012998,2]
[342168695,1731528462270,-666.400537,0.00012998,2]
[342168696,1731528462295,-151.0,0.00012998,2]
[342168697,1731528462319,-267.73618,0.00012998,2]
[342168698,1731528462343,-466.638817,0.00012998,2]
[342168699,1731528462681,-466.638817,0.00012998,2]
[342168700,1731528462706,-151.0,0.00012998,2]
[342168701,1731528462731,-151.0,0.00012998,2]
[342168702,1731528462754,-174.088465,0.00012998,2]
[342168703,1731528462785,-174.088465,0.00012998,2]
[342168704,1731528462814,-151.0,0.00012998,2]
[342168705,1731528462838,-398.009176,0.00012998,2]
[342168706,1731528462862,-398.009176,0.00012998,2]
[342168707,1731528462884,-151.95518,0.00012998,2]
[342168708,1731528462907,-151.95518,0.00012998,2]
[342168709,1731528462929,-151.0,0.00012998,2]
[342168710,1731528462952,-227.405074,0.00012998,2]
[342168711,1731528462975,-151.0,0.00012998,2]
[342168712,1731528462998,-227.405074,0.00012998,2]
[342168713,1731528463026,-151.0,0.00012998,2]
[342168714,1731528463049,-151.0,0.00012998,2]
[342168715,1731528463072,-893.972005,0.00012998,2]
[342168716,1731528463095,-893.972005,0.00012998,2]
[342168717,1731528463117,-598.91132,0.00012998,2]
[342168718,1731528463140,-598.91132,0.00012998,2]
[342168719,1731528463163,-177.997683,0.00012998,2]
[342168720,1731528463186,-177.997683,0.00012998,2]
[342168721,1731528463208,-151.0,0.00012998,2]
[342168722,1731528463231,-285.280053,0.00012998,2]
[342168723,1731528463255,-285.280053,0.00012998,2]
[342168724,1731528463283,-221.919471,0.00012998,2]
[342168725,1731528463307,-221.919471,0.00012998,2]
[342168726,1731528463330,-157.116972,0.00012998,2]
[342168727,1731528463354,-157.116972,0.00012998,2]
[342168728,1731528463379,-376.863285,0.00012998,2]
[342168729,1731528463406,-376.863285,0.00012998,2]
[342168730,1731528463431,-10340.0,0.00012998,2]
[342168731,1731528463456,-41673.62981565,0.00012999,2]
[342168732,1731528463480,-100582.3,0.00012999,2]
[342168733,1731528463503,-151.0,0.00012999,2]
[342168734,1731528463534,-548.76024,0.00012999,2]
[342168735,1731528463558,-424.843563,0.00012999,2]
[342168736,1731528463581,-424.843563,0.00012999,2]
[342168737,1731528463603,-151.0,0.00012999,2]
[342168738,1731528463628,-151.0,0.00012999,2]
[342168739,1731528463650,-151.0,0.00012999,2]
[342168740,1731528463674,-279.997524,0.00012999,2]
[342168741,1731528463697,-279.997524,0.00012999,2]
[342168742,1731528463721,-426.453636,0.00012999,2]
[342168743,1731528463747,-426.453636,0.00012999,2]
[342168744,1731528463777,-151.0,0.00012999,2]
[342168745,1731528463800,-177.963301,0.00012999,2]
[342168746,1731528463823,-177.963301,0.00012999,2]
[342168747,1731528463848,-200.340093,0.00012999,2]
[342168748,1731528463870,-200.340093,0.00012999,2]
[342168749,1731528463892,-151.0,0.00012999,2]
[342168750,1731528463915,-493.88202,0.00012999,2]
[342168751,1731528463940,-753.675377,0.00012999,2]
[342168752,1731528463965,-493.88202,0.00012999,2]
[342168753,1731528463989,-753.675377,0.00012999,2]
[342168754,1731528464018,-1074.668303,0.00012999,2]
[342168755,1731528464048,-522.649381,0.00012999,2]
[342168756,1731528464073,-1074.668303,0.00012999,2]
[342168757,1731528464095,-595.069279,0.00012999,2]
[342168758,1731528464118,-595.069279,0.00012999,2]
[342168759,1731528464141,-151.0,0.00012999,2]
[342168760,1731528464166,-151.0,0.00012999,2]
[342168761,1731528464190,-151.0,0.00012999,2]
[342168762,1731528464214,-151.0,0.00012999,2]
[342168763,1731528464237,-151.0,0.00012999,2]
[342168764,1731528464261,-358.028382,0.00012999,2]
[342168765,1731528464288,-151.0,0.00012999,2]
[342168766,1731528464311,-358.028382,0.00012999,2]
[342168767,1731528464333,-760.457686,0.00012999,2]
[342168768,1731528464357,-760.457686,0.00012999,2]
[342168769,1731528464379,-976.537637,0.00012999,2]
[342168770,1731528464402,-976.537637,0.00012999,2]
[342168771,1731528464426,-555.819384,0.00012999,2]
[342168772,1731528464452,-151.0,0.00012999,2]
[342168773,1731528464477,-2552.680517,0.00012999,2]
[342168774,1731528464500,-555.819384,0.00012999,2]
[342168775,1731528464528,-279.580798,0.00012999,2]
[342168776,1731528464551,-2552.680517,0.00012999,2]
[342168777,1731528464574,-151.0,0.00012999,2]
[342168778,1731528464597,-388.270009,0.00012999,2]
[342168779,1731528464620,-388.270009,0.00012999,2]
[342168780,1731528464644,-279.802429,0.00012999,2]
[342168781,1731528464668,-279.802429,0.00012999,2]
[342168782,1731528464691,-4743.206012,0.00012999,2]
[342168783,1731528464714,-4743.206012,0.00012999,2]
[342168784,1731528464737,-151.0,0.00012999,2]
[342168785,1731528464760,-451.67644,0.00012999,2]
[342168786,1731528464793,-451.67644,0.00012999,2]
[342168787,1731528464816,-10000.0,0.00012999,2]
[342168788,1731528464839,-151.0,0.00012999,2]
[342168789,1731528464864,-2658.825331,0.00012999,2]
[342168790,1731528464887,-151.0,0.00012999,2]
[342168791,1731528464910,-10000.0,0.00012999,2]
[342168792,1731528464933,-1321.943855,0.00012999,2]
[342168793,1731528464957,-2658.825331,0.00012999,2]
[342168794,1731528464982,-10000.0,0.00012999,2]
[342168795,1731528465005,-1321.943855,0.00012999,2]
[342168796,1731528465031,-10000.0,0.00012999,2]
[342168797,1731528465056,-11571030.00067766,0.00013,2]
[342168798,1731528465078,-276.45500192,0.00013,2]
[342168799,1731528465101,-601.14163466,0.00013,2]
[342168800,1731528465127,-3558509.02350732,0.00013,2]
[342168801,1731528465152,-1918560.04798843,0.00013,2]
[342168802,1731528465176,-8058.30808397,0.00013,2]
[342168803,1731528465201,-1783442.79681059,0.00013,2]
[342168804,1731528465225,-1922259.01495712,0.00013,2]
[342168805,1731528465250,-1871698.09413944,0.00013,2]
[342168806,1731528465277,-1913730.63711674,0.00013,2]
[342168807,1731528465300,-197101.0,0.00013,2]
[342168808,1731528465324,-231884.66016121,0.00013,2]
[342168809,1731528465346,-151.0,0.00013,2]
[342168810,1731528465368,-151.0,0.00013,2]
[342168811,1731528465391,-151.0,0.00013,2]
[342168812,1731528465413,-151.0,0.00013,2]
[342168813,1731528465436,-151.0,0.00013,2]
[342168814,1731528465459,-151.0,0.00013,2]
[342168815,1731528465482,-151.0,0.00013,2]
[342168816,1731528465506,-151.0,0.00013,2]
[342168817,1731528465533,-151.0,0.00013,2]
[342168818,1731528465558,-151.0,0.00013,2]
[342168819,1731528465584,-151.0,0.00013,2]
[342168820,1731528465608,-151.0,0.00013,2]
[342168821,1731528465634,-151.0,0.00013,2]
[342168822,1731528465658,-151.0,0.00013,2]
[342168823,1731528465682,-151.0,0.00013,2]
[342168824,1731528465706,-975.23668,0.00013,2]
[342168825,1731528465730,-975.23668,0.00013,2]
[342168826,1731528465756,-975.23668,0.00013,2]
[342168827,1731528465786,-975.23668,0.00013,2]
[342168828,1731528465810,-975.23668,0.00013,2]
[342168829,1731528465837,-975.23668,0.00013,2]
[342168830,1731528465862,-975.23668,0.00013,2]
[342168831,1731528465886,-975.23668,0.00013,2]
[342168832,1731528465910,-975.23668,0.00013,2]
[342168833,1731528465935,-975.236676,0.00013,2]
[342168834,1731528465959,-227.293956,0.00013,2]
[342168835,1731528465984,-227.293956,0.00013,2]
[342168836,1731528466012,-227.293956,0.00013,2]
[342168837,1731528466039,-227.293962,0.00013,2]
[342168838,1731528466063,-1000.0,0.00013,3]
[342168839,1731528466086,-151.0,0.00013,2]
[342168840,1731528466112,-151.0,0.00013,2]
[342168841,1731528466138,-153.866952,0.00013,2]
[342168842,1731528466162,-188.34489,0.00013,2]
[342168843,1731528466186,-188.34489,0.00013,2]
[342168844,1731528466212,-151.0,0.00013,2]
[342168845,1731528466237,-151.0,0.00013,2]
[342168846,1731528466259,-188.34489,0.00013,2]
[342168847,1731528466287,-188.344895,0.00013,2]
[342168848,1731528466309,-151.0,0.00013,2]
[342168849,1731528466336,-151.0,0.00013,2]
[342168850,1731528466359,-151.0,0.00013,2]
[342168851,1731528466384,-151.0,0.00013,2]
[342168852,1731528466407,-666.400537,0.00013,2]
[342168853,1731528466430,-666.400537,0.00013,2]
[342168854,1731528466456,-666.400537,0.00013,2]
[342168855,1731528466480,-666.400542,0.00013,2]
[342168856,1731528466503,-151.0,0.00013,2]
[342168857,1731528466532,-151.0,0.00013,2]
[342168858,1731528466556,-267.73618,0.00013,2]
[342168859,1731528466580,-267.736181,0.00013,2]
[342168860,1731528466603,-466.638817,0.00013,2]
[342168861,1731528466627,-466.638817,0.00013,2]
[342168862,1731528466651,-466.638817,0.00013,2]
[342168863,1731528466675,-466.638819,0.00013,2]
[342168864,1731528466698,-151.0,0.00013,2]
[342168865,1731528466721,-151.0,0.00013,2]
[342168866,1731528466745,-151.0,0.00013,2]
[342168867,1731528466775,-151.0,0.00013,2]
[342168868,1731528466803,-174.088465,0.00013,2]
[342168869,1731528466831,-174.088465,0.00013,2]
[342168870,1731528466857,-174.088465,0.00013,2]
[342168871,1731528466882,-174.088464,0.00013,2]
[342168872,1731528466905,-151.0,0.00013,2]
[342168873,1731528466928,-151.0,0.00013,2]
[342168874,1731528466952,-398.009176,0.00013,2]
[342168875,1731528466976,-398.009176,0.00013,2]
[342168876,1731528466998,-398.009176,0.00013,2]
[342168877,1731528467027,-398.009177,0.00013,2]
[342168878,1731528467052,-151.95518,0.00013,2]
[342168879,1731528467075,-151.95518,0.00013,2]
[342168880,1731528467098,-151.95518,0.00013,2]
[342168881,1731528467122,-151.955173,0.00013,2]
[342168882,1731528467146,-151.0,0.00013,2]
[342168883,1731528467170,-227.405074,0.00013,2]
[342168884,1731528467194,-227.405074,0.00013,2]
[342168885,1731528467218,-151.0,0.00013,2]
[342168886,1731528467242,-227.405074,0.00013,2]
[342168887,1731528467268,-227.405078,0.00013,2]